[Event "DSAM Bad Wildungen 2024"]
[Site "Bad Wildungen"]
[Date "2024.08.02"]
[Round "4.26"]
[White "Best, Florian"]
[Black "Niemann, Silvio"]
[Result "1/2-1/2"]
[Annotator "ChessBase"]
[ECO "D02"]
[WhiteElo "1836"]
[BlackElo "1904"]
[PlyCount "211"]
[EventDate "2024.07.31"]
[EventCountry "GER"]
[SourceTitle "playchess.com"]
[Source "ChessBase"]
[SourceQuality "1"]
[TimeControl "40/5400+30:900+30"]

1. d4 {[%emt 0:00:02]} Nf6 {[%emt 0:00:08]} 2. Nf3 {[%emt 0:00:05]} e6 {[%emt 0:00:11]} 3. g3 {[%emt 0:00:06]} d5 {[%emt 0:00:39]} 4. Bg2 {[%emt 0:00:04]} Bd6 {[%emt 0:00:40]} 5. O-O {[%emt 0:00:09]} O-O {[%emt 0:00:08]} 6. Nbd2 {[%emt 0:00:07]} c5 {[%emt 0:00:31]} 7. c3 {[%emt 0:00:04]} Bd7 {[%emt 0:00:32]} 8. Re1 {[%emt 0:00:05]} Bc6 {[%emt 0:00:28]} 9. a3 {[%emt 0:00:38]} Qc7 {[%emt 0:00:12]} 10. b4 {[%emt 0:00:12]} b6 {[%emt 0:00:54]} 11. e3 {[%emt 0:01:40]} Ne4 {[%emt 0:00:21]} 12. Nxe4 {[%emt 0:00:11]} dxe4 {[%emt 0:00:26]} 13. Nd2 {[%emt 0:00:06]} f5 {[%emt 0:01:27]} 14. f4 {[%emt 0:00:04]} cxd4 {[%emt 0:01:06]} 15. cxd4 {[%emt 0:00:20]} Bd5 {[%emt 0:00:51]} 16. Bb2 {[%emt 0:00:19]} Nd7 {[%emt 0:01:08]} 17. Rc1 {[%emt 0:00:15]} Qb7 {[%emt 0:00:49]} 18. Nc4 {[%emt 0:00:19]} Be7 {[%emt 0:00:22]} 19. Bf1 {[%emt 0:00:53]} Rfc8 {[%emt 0:01:28]} 20. Qd2 {[%emt 0:00:18]} Rc7 {[%emt 0:04:23]} 21. Ne5 {[%emt 0:00:15]} Nxe5 {[%emt 0:01:08]} 22. dxe5 {[%emt 0:00:10]} Rac8 {[%emt 0:00:25]} 23. Rxc7 {[%emt 0:00:17]} Rxc7 {[%emt 0:00:14]} 24. Rc1 {[%emt 0:00:33]} g5 {[%emt 0:01:12]} 25. Rxc7 {[%emt 0:00:35]} Qxc7 {[%emt 0:00:14]} 26. Qc3 {[%emt 0:00:08]} Qxc3 {[%emt 0:00:46]} 27. Bxc3 {[%emt 0:00:04]} gxf4 {[%emt 0:00:37]} 28. gxf4 {[%emt 0:00:10]} a5 {[%emt 0:02:35]} 29. bxa5 {[%emt 0:00:19]} bxa5 {[%emt 0:00:17]} 30. Bxa5 {[%emt 0:00:21]} Bxa3 {[%emt 0:00:24]} 31. Bb6 {[%emt 0:01:07]} Be7 {[%emt 0:00:29]} 32. Be2 {[%emt 0:00:26]} Kg7 {[%emt 0:00:32]} 33. Kg2 {[%emt 0:00:21]} Bb3 {[%emt 0:00:52]} 34. Kg3 {[%emt 0:00:20]} Bc2 {[%emt 0:01:14]} 35. Bc4 {[%emt 0:00:23]} Kf7 {[%emt 0:00:16]} 36. Kf2 {[%emt 0:01:04]} Bd1 {[%emt 0:01:04]} 37. Kg3 {[%emt 0:02:26]} Bf3 {[%emt 0:03:23]} 38. Bc7 {[%emt 0:02:09]} Bc5 {[%emt 0:01:07]} 39. Kf2 {[%emt 0:00:07]} Bd1 {[%emt 0:01:41]} 40. Bd8 {[%emt 0:00:35]} Bb4 {[%emt 0:00:51]} 41. Bb5 {[%emt 0:17:42]} Bc2 {[%emt 0:17:09]} 42. Be2 {[%emt 0:10:23]} Kg6 {[%emt 0:03:23]} 43. Bc4 {[%emt 0:00:36]} Kf7 {[%emt 0:00:22]} 44. Be2 {[%emt 0:00:03]} Ke8 {[%emt 0:00:33]} 45. Bf6 {[%emt 0:00:17]} Kf8 {[%emt 0:01:11]} 46. Bc4 {[%emt 0:00:46]} Kf7 {[%emt 0:00:50]} 47. Be2 {[%emt 0:01:05]} Bd3 {[%emt 0:02:03]} 48. Bh5+ {[%emt 0:00:11]} Kf8 {[%emt 0:00:45]} 49. Bg5 {[%emt 0:02:07]} Kg7 {[%emt 0:02:10]} 50. Bf6+ {[%emt 0:00:28]} Kf8 {[%emt 0:00:41]} 51. Bg5 {[%emt 0:00:06]} Kg7 {[%emt 0:02:51]} 52. Bf6+ {[%emt 0:00:08]} Kg8 {[%emt 0:01:00]} 53. Bg5 {[%emt 0:00:50]} Bb5 {[%emt 0:00:43]} 54. Be2 {[%emt 0:00:15]} Bxe2 {[%emt 0:01:01]} 55. Kxe2 {[%emt 0:00:08]} Kf7 {[%emt 0:00:35]} 56. h3 {[%emt 0:00:11]} Ke8 {[%emt 0:01:26]} 57. Bh4 {[%emt 0:00:50]} Kd7 {[%emt 0:01:30]} 58. Bg5 {[%emt 0:00:55]} Kc6 {[%emt 0:01:31]} 59. Bd8 {[%emt 0:00:24]} Kd5 {[%emt 0:00:37]} 60. Bf6 {[%emt 0:00:22]} Kc4 {[%emt 0:00:50]} 61. Bd8 {[%emt 0:00:34]} Kd5 {[%emt 0:01:29]} 62. Bf6 {[%emt 0:00:14]} Kc6 {[%emt 0:01:04]} 63. Bg5 {[%emt 0:00:26]} Bc3 {[%emt 0:00:36]} 64. Bf6 {[%emt 0:00:08]} Kd7 {[%emt 0:00:29]} 65. Kf2 {[%emt 0:00:23]} Ke8 {[%emt 0:00:11]} 66. Ke2 {[%emt 0:00:12]} Kf7 {[%emt 0:00:16]} 67. Kf2 {[%emt 0:00:11]} Kg6 {[%emt 0:00:51]} 68. Ke2 {[%emt 0:00:14]} Bb4 {[%emt 0:01:59]} 69. Kf2 {[%emt 0:00:24]} Kh5 {[%emt 0:03:44]} 70. Ke2 {[%emt 0:02:59]} Bf8 {[%emt 0:00:17]} 71. Kf2 {[%emt 0:00:18]} Kg6 {[%emt 0:00:24]} 72. Ke2 {[%emt 0:00:15]} Bg7 {[%emt 0:00:22]} 73. Bd8 {[%emt 0:00:19]} Kf7 {[%emt 0:00:45]} 74. Kd2 {[%emt 0:00:42]} Bf8 {[%emt 0:00:46]} 75. Kc3 {[%emt 0:00:27]} Bc5 {[%emt 0:00:56]} 76. Kd2 {[%emt 0:00:13]} Bb4+ {[%emt 0:00:39]} 77. Ke2 {[%emt 0:00:06]} Be7 {[%emt 0:03:59]} 78. Ba5 {[%emt 0:00:38]} Kg6 {[%emt 0:00:42]} 79. Kf2 {[%emt 0:00:18]} Kh5 {[%emt 0:00:44]} 80. Kg2 {[%emt 0:00:18]} Bh4 {[%emt 0:01:04]} 81. Bb4 {[%emt 0:00:26]} Kg6 {[%emt 0:01:31]} 82. Bc3 {[%emt 0:00:24]} Kf7 {[%emt 0:00:25]} 83. Kf1 {[%emt 0:00:15]} Ke7 {[%emt 0:00:42]} 84. Ke2 {[%emt 0:00:16]} Kd7 {[%emt 0:00:13]} 85. Bb2 {[%emt 0:00:38]} Kc6 {[%emt 0:00:15]} 86. Ba3 {[%emt 0:00:12]} Kb5 {[%emt 0:00:38]} 87. Bf8 {[%emt 0:00:12]} Kc4 {[%emt 0:01:21]} 88. Bg7 {[%emt 0:00:15]} Be7 {[%emt 0:01:28]} 89. Bf6 {[%emt 0:00:28]} Bf8 {[%emt 0:00:48]} 90. Kd2 {[%emt 0:00:18]} Bh6 {[%emt 0:01:21]} 91. Ke2 {[%emt 0:00:37]} Kd5 {[%emt 0:00:13]} 92. Kd2 {[%emt 0:00:25]} Kc6 {[%emt 0:00:27]} 93. Ke2 {[%emt 0:00:08]} Kd7 {[%emt 0:00:26]} 94. Kd2 {[%emt 0:00:11]} Ke8 {[%emt 0:00:12]} 95. Ke2 {[%emt 0:00:05]} Kf7 {[%emt 0:00:14]} 96. Kf2 {[%emt 0:00:28]} Bf8 {[%emt 0:00:46]} 97. Bd8 {[%emt 0:00:13]} Bc5 {[%emt 0:01:03]} 98. Ba5 {[%emt 0:05:34]} Be7 {[%emt 0:01:43]} 99. Ke2 {[%emt 0:00:11]} Kg6 {[%emt 0:00:50]} 100. Kf2 {[%emt 0:00:17]} Bh4+ {[%emt 0:00:51]} 101. Kg2 {[%emt 0:00:48]} Kh5 {[%emt 0:00:48]} 102. Bb4 {[%emt 0:00:17]} Bd8 {[%emt 0:00:37]} 103. Bc5 {[%emt 0:00:27]} Bc7 {[%emt 0:00:29]} 104. Be7 {[%emt 0:00:21]} Ba5 {[%emt 0:01:04]} 105. Kf2 {[%emt 0:00:09]} Bc3 {[%emt 0:01:41]} 106. Ke2 {[%emt 0:00:56]} 1/2-1/2

[Event "DSAM Bad Wildungen 2024"]
[Site "Bad Wildungen"]
[Date "2024.08.02"]
[Round "4.27"]
[White "Will, Jonas"]
[Black "Sural, Ceren"]
[Result "1-0"]
[Annotator "NA"]
[ECO "B55"]
[WhiteElo "1868"]
[BlackElo "1772"]
[PlyCount "117"]
[EventDate "2024.07.31"]
[EventCountry "GER"]
[SourceTitle "playchess.com"]
[Source "ChessBase"]
[SourceQuality "1"]
[TimeControl "40/5400+30:900+30"]

1. e4 {[%emt 0:00:03]} c5 {[%emt 0:00:15]} 2. Nf3 {[%emt 0:00:06]} d6 {[%emt 0:00:07]} 3. d4 {[%emt 0:00:06]} cxd4 {[%emt 0:00:07]} 4. Nxd4 {[%emt 0:00:05]} Nf6 {[%emt 0:00:15]} 5. f3 {[%emt 0:00:07]} a6 {[%emt 0:01:11]} 6. c4 {[%emt 0:00:27]} e6 {[%emt 0:05:14]} 7. Nc3 {[%emt 0:01:06]} Be7 {[%emt 0:00:48]} 8. Be2 {[%emt 0:00:51]} Qc7 {[%emt 0:03:52]} 9. Be3 {[%emt 0:00:51]} Nc6 {[%emt 0:02:57]} 10. Rc1 {[%emt 0:01:31]} Nd7 {[%emt 0:02:03]} 11. O-O {[%emt 0:01:46]} O-O {[%emt 0:02:33]} 12. f4 {[%emt 0:02:41]} Nc5 {[%emt 0:04:59]} 13. Qe1 {[%emt 0:10:10]} Bf6 {[%emt 0:04:44]} 14. Qf2 {[%emt 0:04:23]} Bd7 {[%emt 0:09:16]} 15. Rfd1 {[%emt 0:00:46]} Rad8 {[%emt 0:01:50]} 16. Bf3 {[%emt 0:01:46]} b6 {[%emt 0:10:12]} 17. Nxc6 {[%emt 0:02:33]} Bxc6 {[%emt 0:00:08]} 18. b4 {[%emt 0:00:19]} Nd7 {[%emt 0:00:39]} 19. Nd5 {[%emt 0:04:31]} Qb7 {[%emt 0:05:22]} 20. Nxb6 {[%emt 0:10:11]} Bxe4 {[%emt 0:09:05]} 21. Rxd6 {[%emt 0:01:17]} Nxb6 {[%emt 0:02:02]} 22. Rxb6 {[%emt 0:00:30]} Qa8 {[%emt 0:00:08]} 23. Bxe4 {[%emt 0:00:42]} Qxe4 {[%emt 0:00:12]} 24. Rxa6 {[%emt 0:00:17]} Rd3 {[%emt 0:01:26]} 25. Bc5 {[%emt 0:05:39]} Rfd8 {[%emt 0:02:07]} 26. h3 {[%emt 0:04:52]} h6 {[%emt 0:02:57]} 27. Re1 {[%emt 0:24:55]} Rd1 {[%emt 0:09:15]} 28. Rxd1 {[%emt 0:00:43]} Rxd1+ {[%emt 0:00:03]} 29. Kh2 {[%emt 0:00:08]} Qb1 {[%emt 0:05:27]} 30. Rd6 {[%emt 0:05:07]} Rf1 {[%emt 0:02:44]} 31. Qd2 {[%emt 0:02:17]} Bh4 {[%emt 0:00:23]} 32. Rd8+ {[%emt 0:02:12]} Bxd8 {[%emt 0:00:12]} 33. Qxd8+ {[%emt 0:00:07]} Kh7 {[%emt 0:00:04]} 34. Qd2 {[%emt 0:02:06]} h5 {[%emt 0:01:54]} 35. Bf2 {[%emt 0:04:17]} Rh1+ {[%emt 0:03:16]} 36. Kg3 {[%emt 0:00:07]} Qe4 {[%emt 0:00:45]} 37. Qe3 {[%emt 0:02:56]} h4+ {[%emt 0:03:00]} 38. Kxh4 {[%emt 0:01:04]} Qxg2 {[%emt 0:00:37]} 39. Qd3+ {[%emt 0:01:19]} f5 {[%emt 0:00:52]} 40. Qg3 {[%emt 0:01:16]} g5+ {[%emt 0:05:54]} 41. Kxg5 {[%emt 0:17:42]} Qxg3+ {[%emt 0:08:54]} 42. Bxg3 {[%emt 0:00:00]} Rg1 {[%emt 0:00:12]} 43. Kh4 {[%emt 0:00:00]} Ra1 {[%emt 0:00:18]} 44. Bf2 {[%emt 0:00:00]} Rxa2 {[%emt 0:01:33]} 45. Bd4 {[%emt 0:00:00]} Rc2 {[%emt 0:01:56]} 46. c5 {[%emt 0:00:00]} Rc4 {[%emt 0:02:17]} 47. Be5 {[%emt 0:00:00]} Kg6 {[%emt 0:00:41]} 48. Kg3 {[%emt 0:01:03]} Rxb4 {[%emt 0:00:30]} 49. c6 {[%emt 0:00:08]} Rc4 {[%emt 0:01:13]} 50. c7 {[%emt 0:00:06]} Kf7 {[%emt 0:00:52]} 51. Kf3 {[%emt 0:00:37]} Ke7 {[%emt 0:00:16]} 52. h4 {[%emt 0:00:24]} Kd7 {[%emt 0:01:26]} 53. h5 {[%emt 0:00:40]} Rc1 {[%emt 0:00:13]} 54. Kg2 {[%emt 0:00:15]} Rc2+ {[%emt 0:00:11]} 55. Kg3 {[%emt 0:00:14]} Rc1 {[%emt 0:00:11]} 56. Kh4 {[%emt 0:00:21]} Rg1 {[%emt 0:00:14]} 57. h6 {[%emt 0:00:16]} Rc1 {[%emt 0:01:54]} 58. Kg5 {[%emt 0:00:41]} Ke7 {[%emt 0:00:30]} 59. h7 {[%emt 0:02:41]} 1-0

[Event "DSAM Bad Wildungen 2024"]
[Site "Bad Wildungen"]
[Date "2024.08.02"]
[Round "4.28"]
[White "Schaudienst, Arvid"]
[Black "Valean, David-Andrei"]
[Result "0-1"]
[Annotator "NA"]
[ECO "B01"]
[WhiteElo "1761"]
[BlackElo "1762"]
[PlyCount "88"]
[EventDate "2024.07.31"]
[EventCountry "GER"]
[SourceTitle "playchess.com"]
[Source "ChessBase"]
[SourceQuality "1"]
[TimeControl "40/5400+30:900+30"]

1. e4 {[%emt 0:00:04]} d5 {[%emt 0:00:09]} 2. exd5 {[%emt 0:00:12]} Qxd5 {[%emt 0:00:07]} 3. Nc3 {[%emt 0:01:12]} Qd8 {[%emt 0:00:08]} 4. d4 {[%emt 0:00:58]} Nf6 {[%emt 0:00:12]} 5. Bf4 {[%emt 0:01:47]} g6 {[%emt 0:00:32]} 6. Qd2 {[%emt 0:02:11]} Bg7 {[%emt 0:02:32]} 7. O-O-O {[%emt 0:04:37]} c6 {[%emt 0:03:59]} 8. Bh6 {[%emt 0:15:02]} O-O {[%emt 0:21:30]} 9. h4 {[%emt 0:04:10]} Bxh6 {[%emt 0:01:04]} 10. Qxh6 {[%emt 0:00:34]} Ng4 {[%emt 0:00:02]} 11. Qd2 {[%emt 0:05:14]} h5 {[%emt 0:04:55]} 12. f3 {[%emt 0:08:33]} Nf6 {[%emt 0:02:07]} 13. g4 {[%emt 0:10:28]} b5 {[%emt 0:02:21]} 14. gxh5 {[%emt 0:01:39]} Nxh5 {[%emt 0:00:19]} 15. Ne4 {[%emt 0:05:50]} Qc7 {[%emt 0:04:00]} 16. Ne2 {[%emt 0:04:14]} Bf5 {[%emt 0:18:06]} 17. Bh3 {[%emt 0:10:07]} Bxe4 {[%emt 0:16:42]} 18. fxe4 {[%emt 0:00:20]} Nd7 {[%emt 0:00:15]} 19. e5 {[%emt 0:08:49]} Kg7 {[%emt 0:09:47]} 20. Nf4 {[%emt 0:04:32]} Rh8 {[%emt 0:03:30]} 21. Rdg1 {[%emt 0:01:44]} Nxf4 {[%emt 0:03:37]} 22. Qxf4 {[%emt 0:00:11]} Rh6 {[%emt 0:00:55]} 23. Rf1 {[%emt 0:06:31]} Rf8 {[%emt 0:01:34]} 24. Qg4 {[%emt 0:00:57]} Nb6 {[%emt 0:00:29]} 25. Rhg1 {[%emt 0:02:10]} Nc4 {[%emt 0:02:19]} 26. Qf3 {[%emt 0:00:40]} Qa5 {[%emt 0:00:49]} 27. Qc3 {[%emt 0:00:43]} Qxc3 {[%emt 0:01:18]} 28. bxc3 {[%emt 0:00:07]} Rxh4 {[%emt 0:00:36]} 29. Bd7 {[%emt 0:00:07]} Na5 {[%emt 0:00:33]} 30. e6 {[%emt 0:01:02]} f6 {[%emt 0:00:27]} 31. Rf3 {[%emt 0:00:39]} a6 {[%emt 0:00:30]} 32. Rfg3 {[%emt 0:00:25]} g5 {[%emt 0:00:09]} 33. Kb2 {[%emt 0:00:23]} Rfh8 {[%emt 0:00:15]} 34. Ka3 {[%emt 0:00:29]} Rh2 {[%emt 0:01:06]} 35. R1g2 {[%emt 0:00:24]} R8h3 {[%emt 0:00:32]} 36. Rxh3 {[%emt 0:00:41]} Rxg2 {[%emt 0:00:16]} 37. Kb2 {[%emt 0:00:20]} g4 {[%emt 0:00:21]} 38. Rd3 {[%emt 0:00:41]} f5 {[%emt 0:00:43]} 39. d5 {[%emt 0:00:32]} cxd5 {[%emt 0:00:38]} 40. Rxd5 {[%emt 0:00:20]} Nc4+ {[%emt 0:00:12]} 41. Kb3 {[%emt 0:00:51]} Rf2 {[%emt 0:03:38]} 42. Rd1 {[%emt 0:05:59]} g3 {[%emt 0:02:42]} 43. Rg1 {[%emt 0:02:24]} g2 {[%emt 0:00:30]} 44. Bc8 {[%emt 0:00:23]} Nd2+ {[%emt 0:01:16]} 0-1

[Event "DSAM Bad Wildungen 2024"]
[Site "Bad Wildungen"]
[Date "2024.08.02"]
[Round "4.29"]
[White "Franz, Niclas"]
[Black "Sklorz, Tobias"]
[Result "1-0"]
[Annotator "NA"]
[ECO "C11"]
[WhiteElo "1877"]
[BlackElo "1843"]
[PlyCount "73"]
[EventDate "2024.07.31"]
[EventCountry "GER"]
[SourceTitle "playchess.com"]
[Source "ChessBase"]
[SourceQuality "1"]
[TimeControl "40/5400+30:900+30"]

1. e4 {[%emt 0:01:16]} c5 {[%emt 0:00:39]} 2. Nc3 {[%emt 0:00:08]} e6 {[%emt 0:00:10]} 3. f4 {[%emt 0:00:04]} d5 {[%emt 0:00:15]} 4. Nf3 {[%emt 0:00:37]} Nf6 {[%emt 0:01:39]} 5. e5 {[%emt 0:01:32]} Nfd7 {[%emt 0:00:09]} 6. d4 {[%emt 0:01:25]} Nc6 {[%emt 0:00:27]} 7. a3 {[%emt 0:05:17]} cxd4 {[%emt 0:06:44]} 8. Nxd4 {[%emt 0:01:06]} Nxd4 {[%emt 0:00:33]} 9. Qxd4 {[%emt 0:01:06]} Bc5 {[%emt 0:00:16]} 10. Qd1 {[%emt 0:01:11]} a6 {[%emt 0:08:05]} 11. Bd3 {[%emt 0:05:17]} O-O {[%emt 0:07:07]} 12. Qh5 {[%emt 0:07:26]} f5 {[%emt 0:09:16]} 13. Bd2 {[%emt 0:10:03]} b5 {[%emt 0:01:52]} 14. Ne2 {[%emt 0:14:14]} Bb7 {[%emt 0:02:51]} 15. c3 {[%emt 0:01:18]} Qb6 {[%emt 0:03:59]} 16. b4 {[%emt 0:03:17]} Bf2+ {[%emt 0:00:11]} 17. Kf1 {[%emt 0:00:05]} Be3 {[%emt 0:00:50]} 18. Ke1 {[%emt 0:01:22]} Rac8 {[%emt 0:02:44]} 19. Rf1 {[%emt 0:08:23]} d4 {[%emt 0:03:20]} 20. Bxe3 {[%emt 0:02:18]} dxe3 {[%emt 0:00:09]} 21. Qh3 {[%emt 0:02:16]} Rfd8 {[%emt 0:05:39]} 22. Rd1 {[%emt 0:02:02]} Bd5 {[%emt 0:09:56]} 23. Rc1 {[%emt 0:02:54]} Bb3 {[%emt 0:02:30]} 24. Bb1 {[%emt 0:07:24]} Nxe5 {[%emt 0:13:01]} 25. fxe5 {[%emt 0:01:34]} Rd2 {[%emt 0:00:10]} 26. Rf3 {[%emt 0:03:03]} Qd8 {[%emt 0:03:33]} 27. Rxe3 {[%emt 0:03:06]} Rd1+ {[%emt 0:00:12]} 28. Kf2 {[%emt 0:00:17]} Rxc1 {[%emt 0:07:45]} 29. Nxc1 {[%emt 0:00:05]} Qd2+ {[%emt 0:00:09]} 30. Ne2 {[%emt 0:00:05]} Bd1 {[%emt 0:04:17]} 31. Qf3 {[%emt 0:01:58]} f4 {[%emt 0:00:38]} 32. Rd3 {[%emt 0:04:00]} Bxe2 {[%emt 0:00:56]} 33. Qxe2 {[%emt 0:02:13]} Qc1 {[%emt 0:00:22]} 34. Qe4 {[%emt 0:02:09]} Qxa3 {[%emt 0:00:38]} 35. h3 {[%emt 0:02:37]} Rf8 {[%emt 0:01:30]} 36. Rd7 {[%emt 0:00:53]} Qb2+ {[%emt 0:00:40]} 37. Kg1 {[%emt 0:00:13]} 1-0

[Event "DSAM Bad Wildungen 2024"]
[Site "Bad Wildungen"]
[Date "2024.08.02"]
[Round "4.30"]
[White "Kessler, Rene"]
[Black "Sviridov, Vitaliy"]
[Result "0-1"]
[Annotator "NA"]
[ECO "B01"]
[WhiteElo "1714"]
[BlackElo "1771"]
[PlyCount "66"]
[EventDate "2024.07.31"]
[EventCountry "GER"]
[SourceTitle "playchess.com"]
[Source "ChessBase"]
[SourceQuality "1"]
[TimeControl "40/5400+30:900+30"]

1. e4 {[%emt 0:00:02]} d5 {[%emt 0:00:06]} 2. exd5 {[%emt 0:00:24]} Qxd5 {[%emt 0:00:02]} 3. Nc3 {[%emt 0:01:09]} Qd6 {[%emt 0:01:54]} 4. Nf3 {[%emt 0:01:25]} c6 {[%emt 0:00:02]} 5. Bc4 {[%emt 0:02:30]} Nf6 {[%emt 0:00:04]} 6. O-O {[%emt 0:01:34]} Bg4 {[%emt 0:00:16]} 7. Re1 {[%emt 0:08:16]} Bxf3 {[%emt 0:00:06]} 8. Qxf3 {[%emt 0:00:26]} e6 {[%emt 0:00:27]} 9. d3 {[%emt 0:02:16]} Qc7 {[%emt 0:02:14]} 10. Bg5 {[%emt 0:04:07]} Be7 {[%emt 0:01:18]} 11. Bf4 {[%emt 0:08:41]} Bd6 {[%emt 0:05:28]} 12. Bxd6 {[%emt 0:05:41]} Qxd6 {[%emt 0:00:06]} 13. Ne4 {[%emt 0:03:11]} Nxe4 {[%emt 0:00:23]} 14. dxe4 {[%emt 0:02:56]} Nd7 {[%emt 0:02:03]} 15. Qc3 {[%emt 0:03:09]} O-O {[%emt 0:01:17]} 16. Rad1 {[%emt 0:02:48]} Qe7 {[%emt 0:01:16]} 17. e5 {[%emt 0:01:36]} Nb6 {[%emt 0:00:16]} 18. Bd3 {[%emt 0:01:02]} Nd5 {[%emt 0:00:25]} 19. Qd4 {[%emt 0:00:56]} Rfd8 {[%emt 0:01:11]} 20. Qe4 {[%emt 0:01:59]} g6 {[%emt 0:00:49]} 21. a3 {[%emt 0:01:46]} Rd7 {[%emt 0:01:11]} 22. h4 {[%emt 0:06:06]} Kg7 {[%emt 0:00:50]} 23. h5 {[%emt 0:01:53]} Rh8 {[%emt 0:01:25]} 24. c4 {[%emt 0:02:51]} Nb6 {[%emt 0:00:49]} 25. Qf4 {[%emt 0:03:22]} Rhd8 {[%emt 0:02:02]} 26. Re3 {[%emt 0:08:21]} Rd4 {[%emt 0:00:37]} 27. h6+ {[%emt 0:07:23]} Kg8 {[%emt 0:01:25]} 28. Qf3 {[%emt 0:01:55]} Nxc4 {[%emt 0:00:46]} 29. Re4 {[%emt 0:03:03]} Nxb2 {[%emt 0:02:51]} 30. Rxd4 {[%emt 0:04:17]} Rxd4 {[%emt 0:00:03]} 31. Rd2 {[%emt 0:03:22]} Nc4 {[%emt 0:02:18]} 32. Re2 {[%emt 0:01:52]} Nb6 {[%emt 0:05:22]} 33. Qe3 {[%emt 0:03:39]} Qd8 {[%emt 0:00:32]} 0-1

[Event "DSAM Bad Wildungen 2024"]
[Site "Bad Wildungen"]
[Date "2024.08.02"]
[Round "4.31"]
[White "Ferneding, Conrad"]
[Black "Krueger, Malte"]
[Result "0-1"]
[Annotator "NA"]
[ECO "B12"]
[WhiteElo "1780"]
[BlackElo "1739"]
[PlyCount "90"]
[EventDate "2024.07.31"]
[EventCountry "GER"]
[SourceTitle "playchess.com"]
[Source "ChessBase"]
[SourceQuality "1"]
[TimeControl "40/5400+30:900+30"]

1. e4 {[%emt 0:00:02]} c6 {[%emt 0:00:04]} 2. d4 {[%emt 0:00:04]} d5 {[%emt 0:00:03]} 3. e5 {[%emt 0:00:02]} Bf5 {[%emt 0:00:05]} 4. h4 {[%emt 0:00:05]} h5 {[%emt 0:00:06]} 5. Bd3 {[%emt 0:01:08]} Bxd3 {[%emt 0:01:14]} 6. Qxd3 {[%emt 0:00:07]} e6 {[%emt 0:00:08]} 7. Nf3 {[%emt 0:00:10]} c5 {[%emt 0:01:29]} 8. c3 {[%emt 0:00:47]} Nc6 {[%emt 0:00:37]} 9. O-O {[%emt 0:01:08]} cxd4 {[%emt 0:04:18]} 10. cxd4 {[%emt 0:00:09]} Nh6 {[%emt 0:00:33]} 11. g3 {[%emt 0:03:25]} Qb6 {[%emt 0:07:15]} 12. Nc3 {[%emt 0:04:52]} Nf5 {[%emt 0:02:58]} 13. Ne2 {[%emt 0:06:14]} Rc8 {[%emt 0:04:02]} 14. a3 {[%emt 0:01:30]} Be7 {[%emt 0:02:42]} 15. Bd2 {[%emt 0:01:05]} Na5 {[%emt 0:08:03]} 16. b4 {[%emt 0:05:21]} Nc4 {[%emt 0:00:39]} 17. Rfc1 {[%emt 0:02:38]} O-O {[%emt 0:06:06]} 18. Bg5 {[%emt 0:04:30]} Rfe8 {[%emt 0:07:00]} 19. Bxe7 {[%emt 0:05:08]} Rxe7 {[%emt 0:00:34]} 20. Nf4 {[%emt 0:03:07]} g6 {[%emt 0:02:16]} 21. Rc2 {[%emt 0:13:41]} Rec7 {[%emt 0:02:01]} 22. Rac1 {[%emt 0:02:18]} a5 {[%emt 0:03:16]} 23. bxa5 {[%emt 0:06:49]} Qxa5 {[%emt 0:01:13]} 24. Qb3 {[%emt 0:03:00]} Ra8 {[%emt 0:02:03]} 25. Rc3 {[%emt 0:01:17]} b5 {[%emt 0:04:15]} 26. Nd3 {[%emt 0:02:09]} Rca7 {[%emt 0:05:03]} 27. Ra1 {[%emt 0:04:26]} Qb6 {[%emt 0:00:42]} 28. Nc5 {[%emt 0:06:26]} Rxa3 {[%emt 0:04:30]} 29. Rxa3 {[%emt 0:00:06]} Rxa3 {[%emt 0:00:13]} 30. Qb4 {[%emt 0:00:14]} Rxc3 {[%emt 0:01:05]} 31. Qxc3 {[%emt 0:00:07]} Qa5 {[%emt 0:01:45]} 32. Qb3 {[%emt 0:02:48]} Nxd4 {[%emt 0:05:28]} 33. Nxd4 {[%emt 0:02:05]} Qa1+ {[%emt 0:00:05]} 34. Kg2 {[%emt 0:00:07]} Qxd4 {[%emt 0:00:05]} 35. Qxb5 {[%emt 0:00:16]} Nxe5 {[%emt 0:00:31]} 36. Qb8+ {[%emt 0:00:34]} Kg7 {[%emt 0:00:39]} 37. Qc7 {[%emt 0:00:23]} Kh6 {[%emt 0:07:37]} 38. Qe7 {[%emt 0:03:14]} Ng4 {[%emt 0:02:18]} 39. Qf8+ {[%emt 0:02:18]} Qg7 {[%emt 0:00:09]} 40. Qe7 {[%emt 0:01:17]} Kh7 {[%emt 0:02:44]} 41. Nd7 {[%emt 0:17:24]} d4 {[%emt 0:19:06]} 42. Qd8 {[%emt 0:03:24]} Qg8 {[%emt 0:03:10]} 43. Qe7 {[%emt 0:03:14]} Qa8+ {[%emt 0:03:30]} 44. Kg1 {[%emt 0:00:41]} Qf3 {[%emt 0:02:25]} 45. Nf8+ {[%emt 0:06:10]} Kg8 {[%emt 0:01:19]} 0-1

[Event "DSAM Bad Wildungen 2024"]
[Site "Bad Wildungen"]
[Date "2024.08.02"]
[Round "4.32"]
[White "Sander, Manuel"]
[Black "Espenhahn, Joerg"]
[Result "1-0"]
[Annotator "NA"]
[ECO "C55"]
[WhiteElo "1695"]
[BlackElo "1788"]
[PlyCount "79"]
[EventDate "2024.07.31"]
[EventCountry "GER"]
[SourceTitle "playchess.com"]
[Source "ChessBase"]
[SourceQuality "1"]
[TimeControl "40/5400+30:900+30"]

1. e4 {[%emt 0:00:03]} e5 {[%emt 0:00:06]} 2. Nf3 {[%emt 0:00:05]} Nf6 {[%emt 0:00:06]} 3. Nc3 {[%emt 0:00:12]} Bb4 {[%emt 0:00:28]} 4. Bc4 {[%emt 0:00:39]} d6 {[%emt 0:03:37]} 5. d3 {[%emt 0:00:31]} h6 {[%emt 0:00:28]} 6. Bd2 {[%emt 0:00:31]} Nc6 {[%emt 0:01:43]} 7. h3 {[%emt 0:00:44]} a6 {[%emt 0:00:52]} 8. Ne2 {[%emt 0:01:40]} Bc5 {[%emt 0:02:04]} 9. Be3 {[%emt 0:02:04]} Bxe3 {[%emt 0:01:17]} 10. fxe3 {[%emt 0:00:06]} Na5 {[%emt 0:00:32]} 11. Bb3 {[%emt 0:01:59]} Nxb3 {[%emt 0:00:14]} 12. axb3 {[%emt 0:00:08]} O-O {[%emt 0:01:48]} 13. Ng3 {[%emt 0:01:13]} Nh7 {[%emt 0:00:56]} 14. O-O {[%emt 0:02:40]} f5 {[%emt 0:00:57]} 15. exf5 {[%emt 0:00:29]} Bxf5 {[%emt 0:00:26]} 16. Nh4 {[%emt 0:02:37]} Qxh4 {[%emt 0:03:46]} 17. Nxf5 {[%emt 0:01:02]} Qg5 {[%emt 0:00:32]} 18. h4 {[%emt 0:02:30]} Qd8 {[%emt 0:02:38]} 19. Qg4 {[%emt 0:01:02]} Qf6 {[%emt 0:04:08]} 20. e4 {[%emt 0:01:39]} Rf7 {[%emt 0:01:55]} 21. Rf2 {[%emt 0:04:22]} Raf8 {[%emt 0:03:41]} 22. Raf1 {[%emt 0:00:41]} Kh8 {[%emt 0:09:58]} 23. Nxd6 {[%emt 0:04:33]} Qxf2+ {[%emt 0:00:28]} 24. Rxf2 {[%emt 0:00:12]} Rxf2 {[%emt 0:00:02]} 25. Nf5 {[%emt 0:00:11]} R8xf5 {[%emt 0:04:14]} 26. exf5 {[%emt 0:01:14]} Rxc2 {[%emt 0:00:15]} 27. Qe4 {[%emt 0:01:24]} Nf6 {[%emt 0:00:42]} 28. Qxb7 {[%emt 0:01:37]} Ng4 {[%emt 0:01:23]} 29. Kf1 {[%emt 0:00:18]} Rxb2 {[%emt 0:01:04]} 30. Qxa6 {[%emt 0:05:06]} Rxb3 {[%emt 0:01:31]} 31. Qa4 {[%emt 0:02:09]} Rb1+ {[%emt 0:01:14]} 32. Ke2 {[%emt 0:00:26]} Rb2+ {[%emt 0:01:22]} 33. Kf3 {[%emt 0:04:28]} Nf6 {[%emt 0:01:34]} 34. g4 {[%emt 0:02:05]} Rb1 {[%emt 0:02:00]} 35. g5 {[%emt 0:01:35]} Ng8 {[%emt 0:02:04]} 36. Qe4 {[%emt 0:02:39]} Rf1+ {[%emt 0:00:56]} 37. Ke2 {[%emt 0:01:06]} Rf4 {[%emt 0:00:48]} 38. Qxe5 {[%emt 0:00:56]} Rxh4 {[%emt 0:00:16]} 39. f6 {[%emt 0:01:33]} gxf6 {[%emt 0:47:55]} 40. gxf6 {[%emt 0:52:01]} 1-0